lending/lending_fUSD_20250508
["ID","MTS","AMOUNT","RATE_DAILY","PERIOD"]
[360316450,1746738927881,-400.0,0.00044016,120]
[360316451,1746738927940,-4529.27,0.00044016,120]
[360316452,1746738927991,-459.67,0.00044016,120]
[360316453,1746738928040,-824.16,0.00044016,120]
[360316454,1746738928088,-400.0,0.00044016,120]
[360316455,1746738928136,-502.61,0.00044016,120]
[360316456,1746738928182,-2673.31,0.00044016,120]
[360316457,1746738928232,-400.0,0.00044016,120]
[360316458,1746738928281,-4529.27,0.00044016,120]
[360316459,1746738928335,-459.67,0.00044016,120]
[360316460,1746738928385,-824.16,0.00044016,120]
[360316461,1746738928436,-502.61,0.00044016,120]
[360316462,1746738928485,-2673.31,0.00044016,120]
[360316463,1746738928532,-400.0,0.00044016,120]
[360316464,1746738928580,-4529.27,0.00044016,120]
[360316465,1746738928628,-400.0,0.00044016,120]
[360316466,1746738928675,-824.16,0.00044016,120]
[360316467,1746738928723,-502.61,0.00044016,120]
[360316468,1746738928769,-2673.50459318,0.00044016,120]
[360316469,1746738928819,-285.48628061,0.00044016,120]
[360316470,1746738928867,-400.0,0.00044016,120]
[360316471,1746738928918,-4529.27,0.00044016,120]
[360316472,1746738928968,-400.0,0.00044016,120]
[360316473,1746738929018,-824.16,0.00044016,120]
[360316474,1746738929063,-400.0,0.00044016,120]
[360316475,1746738929109,-502.61,0.00044016,120]
[360316476,1746738929157,-459.67,0.00044016,120]
[360316477,1746738929206,-400.0,0.00044016,120]
[360316478,1746738929256,-4529.27,0.00044016,120]
[360316479,1746738929304,-400.0,0.00044016,120]
[360316480,1746738929352,-502.61,0.00044016,120]
[360316481,1746738929402,-459.67,0.00044016,120]
[360316482,1746738929450,-824.16,0.00044016,120]
[360316483,1746738929498,-400.0,0.00044016,120]
[360316484,1746738929545,-400.0,0.00044016,120]
[360316485,1746738929592,-4529.27,0.00044016,120]
[360316486,1746738929639,-502.61,0.00044016,120]
[360316487,1746738929687,-400.0,0.00044016,120]
[360316488,1746738929736,-824.16,0.00044016,120]
[360316489,1746738929785,-459.67,0.00044016,120]
[360316490,1746738929831,-161.89703524,0.00044016,120]
[360316491,1746738929882,-400.0,0.00044016,120]
[360316492,1746738929931,-4529.29028672,0.00044016,120]
[360316493,1746738929982,-502.61,0.00044016,120]
[360316494,1746738930031,-751.02,0.00044016,120]
[360316495,1746738930077,-400.0,0.00044016,120]
[360316496,1746738930127,-824.16,0.00044016,120]
[360316497,1746738930176,-459.67,0.00044016,120]
[360316498,1746738930226,-400.0,0.00044016,120]
[360316499,1746738930272,-502.61,0.00044016,120]
[360316500,1746738930323,-548.06810619,0.00044016,120]
[360316501,1746738930373,-824.16,0.00044016,120]
[360316502,1746738930425,-459.67,0.00044016,120]
[360316504,1746738930478,-751.02,0.00044016,120]
[360316505,1746738930528,-502.61,0.00044016,120]
[360316506,1746738930578,-824.16,0.00044016,120]
[360316507,1746738930627,-751.02,0.00044016,120]
[360316508,1746738930677,-459.67,0.00044016,120]
[360316509,1746738930730,-400.0,0.00044016,120]
[360316510,1746738930781,-824.16,0.00044016,120]
[360316511,1746738930837,-502.61,0.00044016,120]
[360316512,1746738930884,-751.02,0.00044016,120]
[360316513,1746738930933,-459.67,0.00044016,120]
[360316514,1746738930982,-400.0,0.00044016,120]
[360316515,1746738931031,-824.16,0.00044016,120]
[360316516,1746738931078,-502.61,0.00044016,120]
[360316517,1746738931125,-751.02,0.00044016,120]
[360316518,1746738931173,-459.67,0.00044016,120]
[360316519,1746738931223,-234.58132308,0.00044016,120]
[360316520,1746738931274,-824.25056808,0.00044016,120]
[360316521,1746738931325,-502.61,0.00044016,120]
[360316522,1746738931375,-751.02,0.00044016,120]
[360316523,1746738931426,-459.67,0.00044016,120]
[360316524,1746738931476,-502.61,0.00044016,120]
[360316525,1746738931525,-751.02,0.00044016,120]
[360316526,1746738931837,-459.67,0.00044016,120]
[360316527,1746738931885,-502.61,0.00044016,120]
[360316528,1746738931932,-751.02,0.00044016,120]
[360316529,1746738931981,-502.61,0.00044016,120]
[360316530,1746738932029,-751.02,0.00044016,120]
[360316531,1746738932075,-424.35,0.00044016,120]
[360316532,1746738932122,-502.61,0.00044016,120]
[360316533,1746738932169,-751.02,0.00044016,120]
[360316534,1746738932220,-459.67,0.00044016,120]
[360316535,1746738932265,-424.35,0.00044016,120]
[360316536,1746738932312,-502.61,0.00044016,120]
[360316537,1746738932358,-751.02,0.00044016,120]
[360316538,1746738932407,-459.67,0.00044016,120]
[360316539,1746738932454,-424.35,0.00044016,120]
[360316540,1746738932499,-502.61,0.00044016,120]
[360316541,1746738932542,-751.02,0.00044016,120]
[360316542,1746738932588,-459.67,0.00044016,120]
[360316543,1746738932632,-644.38,0.00044016,120]
[360316544,1746738932676,-424.35,0.00044016,120]
[360316545,1746738932720,-502.61,0.00044016,120]
[360316546,1746738932767,-480.08,0.00044016,120]
[360316547,1746738932814,-751.02,0.00044016,120]
[360316548,1746738932862,-459.67,0.00044016,120]
[360316549,1746738932911,-644.38,0.00044016,120]
[360316550,1746738932959,-424.35,0.00044016,120]
[360316551,1746738933006,-502.61,0.00044016,120]
[360316552,1746738933055,-480.08,0.00044016,120]
[360316553,1746738933104,-751.02,0.00044016,120]
[360316554,1746738933156,-459.67,0.00044016,120]
[360316555,1746738933206,-644.38,0.00044016,120]
[360316556,1746738933254,-424.35,0.00044016,120]
[360316557,1746738933303,-502.61,0.00044016,120]
[360316558,1746738933352,-843.54,0.00044016,120]
[360316559,1746738933404,-480.08,0.00044016,120]
[360316560,1746738933454,-751.02,0.00044016,120]
[360316561,1746738933503,-424.35,0.00044016,120]
[360316562,1746738933555,-459.67,0.00044016,120]
[360316563,1746738933604,-502.61,0.00044016,120]
[360316564,1746738933654,-843.54,0.00044016,120]
[360316565,1746738933704,-480.08,0.00044016,120]
[360316566,1746738933754,-424.35,0.00044016,120]
[360316567,1746738933805,-459.67,0.00044016,120]
[360316568,1746738933856,-644.38,0.00044016,120]
[360316569,1746738933907,-502.66122345,0.00044016,120]
[360316570,1746738933957,-480.08,0.00044016,120]
[360316571,1746738934008,-751.02,0.00044016,120]
[360316572,1746738934061,-424.35,0.00044016,120]
[360316573,1746738934118,-459.67,0.00044016,120]
[360316574,1746738934179,-644.38,0.00044016,120]
[360316575,1746738934250,-480.08,0.00044016,120]
[360316576,1746738934305,-751.02,0.00044016,120]
[360316577,1746738934359,-459.67,0.00044016,120]
[360316578,1746738934414,-751.02,0.00044016,120]
[360316579,1746738934465,-1561.26,0.00044016,120]
[360316580,1746738934516,-424.35,0.00044016,120]
[360316581,1746738934567,-400.0,0.00044016,120]
[360316582,1746738934617,-644.38,0.00044016,120]
[360316583,1746738934665,-751.02,0.00044016,120]
[360316584,1746738934715,-1561.26,0.00044016,120]
[360316585,1746738934764,-424.35,0.00044016,120]
[360316586,1746738934812,-400.0,0.00044016,120]
[360316587,1746738934861,-644.38,0.00044016,120]
[360316588,1746738934911,-459.67,0.00044016,120]
[360316589,1746738934960,-751.02,0.00044016,120]
[360316590,1746738935015,-424.35,0.00044016,120]
[360316591,1746738935063,-400.0,0.00044016,120]
[360316592,1746738935111,-1561.26,0.00044016,120]
[360316593,1746738935161,-400.0,0.00044016,120]
[360316594,1746738935213,-644.38,0.00044016,120]
[360316595,1746738935264,-459.70087854,0.00044016,120]
[360316596,1746738935314,-751.02,0.00044016,120]
[360316597,1746738935364,-1561.26,0.00044016,120]
[360316598,1746738935415,-400.0,0.00044016,120]
[360316599,1746738935466,-644.38,0.00044016,120]
[360316600,1746738935515,-1561.26,0.00044016,120]
[360316601,1746738935565,-424.35,0.00044016,120]
[360316602,1746738935613,-751.02,0.00044016,120]
[360316603,1746738935661,-266.65845965,0.00044016,120]
[360316604,1746738935710,-644.38,0.00044016,120]
[360316605,1746738935758,-751.02,0.00044016,120]
[360316606,1746738935804,-424.35,0.00044016,120]
[360316607,1746738935852,-1561.26,0.00044016,120]
[360316608,1746738935900,-843.54,0.00044016,120]
[360316609,1746738935951,-480.08,0.00044016,120]
[360316610,1746738936005,-400.0,0.00044016,120]
[360316611,1746738936055,-751.02,0.00044016,120]
[360316612,1746738936104,-424.35,0.00044016,120]
[360316613,1746738936153,-644.38,0.00044016,120]
[360316614,1746738936201,-843.54,0.00044016,120]
[360316615,1746738936251,-480.08,0.00044016,120]
[360316616,1746738936303,-400.0,0.00044016,120]
[360316617,1746738936353,-1561.26,0.00044016,120]
[360316618,1746738936403,-424.35,0.00044016,120]
[360316619,1746738936452,-843.54,0.00044016,120]
[360316620,1746738936504,-480.08,0.00044016,120]
[360316621,1746738936556,-644.38,0.00044016,120]
[360316622,1746738936606,-400.0,0.00044016,120]
[360316623,1746738936655,-1561.26,0.00044016,120]
[360316624,1746738936704,-424.35,0.00044016,120]
[360316625,1746738936754,-843.54,0.00044016,120]
[360316626,1746738936801,-644.38,0.00044016,120]
[360316627,1746738936850,-400.0,0.00044016,120]
[360316628,1746738936900,-1561.26,0.00044016,120]
[360316629,1746738936953,-424.35,0.00044016,120]
[360316630,1746738937378,-480.08,0.00044016,120]
[360316631,1746738937443,-843.54,0.00044016,120]
[360316632,1746738937495,-644.38,0.00044016,120]
[360316633,1746738937547,-400.0,0.00044016,120]
[360316634,1746738937597,-1561.26,0.00044016,120]
[360316635,1746738937644,-424.35,0.00044016,120]
[360316636,1746738937691,-480.08,0.00044016,120]
[360316637,1746738937739,-843.54,0.00044016,120]
[360316638,1746738937786,-644.38,0.00044016,120]
[360316639,1746738937833,-1561.26,0.00044016,120]
[360316640,1746738937881,-360.79257775,0.00044016,120]
[360316641,1746738937933,-424.35,0.00044016,120]
[360316642,1746738937985,-480.08,0.00044016,120]
[360316643,1746738938035,-843.54,0.00044016,120]
[360316644,1746738938083,-644.38,0.00044016,120]
[360316645,1746738938134,-1561.26,0.00044016,120]
[360316646,1746738938182,-400.0,0.00044016,120]
[360316647,1746738938232,-424.35,0.00044016,120]
[360316648,1746738938281,-480.08,0.00044016,120]
[360316649,1746738938342,-843.54,0.00044016,120]
[360316650,1746738938393,-644.38,0.00044016,120]
[360316651,1746738938447,-1561.26,0.00044016,120]
[360316652,1746738938500,-400.0,0.00044016,120]
[360316653,1746738938551,-424.35,0.00044016,120]
[360316654,1746738938604,-480.08,0.00044016,120]
[360316655,1746738938657,-843.54,0.00044016,120]
[360316656,1746738938709,-644.38,0.00044016,120]
[360316657,1746738938761,-1561.26,0.00044016,120]
[360316658,1746738938814,-400.0,0.00044016,120]
[360316659,1746738938867,-480.08,0.00044016,120]
[360316660,1746738938919,-424.35,0.00044016,120]
[360316661,1746738938970,-843.54,0.00044016,120]
[360316662,1746738939019,-644.38,0.00044016,120]
[360316663,1746738939070,-1561.26,0.00044016,120]
[360316664,1746738939119,-400.0,0.00044016,120]
[360316665,1746738939174,-480.08,0.00044016,120]
[360316666,1746738939226,-424.41595878,0.00044016,120]
[360316667,1746738939279,-644.38,0.00044016,120]
[360316668,1746738939336,-843.54,0.00044016,120]
[360316669,1746738939388,-1561.26,0.00044016,120]
[360316670,1746738939439,-400.0,0.00044016,120]
[360316671,1746738939495,-480.08,0.00044016,120]
[360316672,1746738939546,-1561.26,0.00044016,120]
[360316673,1746738939596,-843.54,0.00044016,120]
[360316674,1746738939645,-276.79795886,0.00044016,120]
[360316675,1746738939698,-644.38,0.00044016,120]
[360316676,1746738939746,-480.08,0.00044016,120]
[360316677,1746738939794,-1561.26,0.00044016,120]
[360316678,1746738939843,-843.54,0.00044016,120]
[360316679,1746738939892,-400.0,0.00044016,120]
[360316680,1746738939941,-644.38,0.00044016,120]
[360316681,1746738939992,-480.08,0.00044016,120]
[360316682,1746738940041,-843.54,0.00044016,120]
[360316683,1746738940088,-1561.26,0.00044016,120]
[360316684,1746738940135,-644.38,0.00044016,120]
[360316685,1746738940182,-400.0,0.00044016,120]
[360316686,1746738940233,-438.34386937,0.00044016,120]
[360316688,1746738954243,-758.9050554,0.00024889,2]
[360316689,1746738954254,-9038.31132716,0.00024889,2]
[360316690,1746738954266,-11719.36770365,0.00024889,2]
[360316691,1746738954278,-2156.51441042,0.00024889,2]
[360316692,1746738954294,-2298.00001,0.00024889,2]
[360316693,1746738954313,-8273.99819698,0.00024889,2]
[360316694,1746738954324,-312.75264615,0.00024889,2]
[360316695,1746738954336,-4665.0002005,0.00024889,2]
[360316696,1746738954347,-2174.04318801,0.00024889,2]
[360316697,1746738954359,-22047.64277963,0.00024889,2]
[360316698,1746738954370,-16249.57427214,0.00024889,2]
[360316699,1746738954383,-47566.59814292,0.00024889,2]
[360316700,1746738954396,-8226.24985976,0.00024889,2]
[360316701,1746738954407,-48491.16141775,0.00024889,2]
[360316702,1746738954419,-62816.02814781,0.00024889,2]
[360316703,1746738954434,-4771.76,0.00024889,2]
[360316704,1746738954545,1304.53049,0.0002,5]
[360316705,1746738954591,704.5,0.00026882,120]
[360316706,1746738954636,704.5,0.00029326,120]
[360316707,1746738954668,1304.53049,0.0002,5]
[360316708,1746738954748,1304.53049,0.0002,5]
[360316709,1746738958518,-170.01396221,0.0001955,2]
[360316710,1746738961562,156.24,0.0003,31]
[360316711,1746738961617,156.24,0.0003,31]
[360316712,1746738966300,500.0,0.00030136,120]
[360316713,1746738973006,2049.22741842,0.00017085,2]
[360316714,1746738973412,-170.01396221,0.0001955,2]
[360316716,1746738981665,200.0,0.00018794,2]
[360316717,1746738981692,200.0,0.00018318,2]
[360316718,1746738981732,250.0,0.00018794,2]
[360316719,1746738981760,250.0,0.00018318,2]
[360316720,1746738981981,-348.34044616,0.0001955,2]
[360316721,1746738982666,-16.13162942,0.0001955,2]
[360316738,1746739186783,65000.0,0.0003,30]
[360316747,1746739359332,154.56,0.0003,31]
[360316748,1746739359390,154.56,0.0003,31]
[360316749,1746739359458,154.56,0.0003,31]
[360316750,1746739359517,154.56,0.0003,31]
[360316751,1746739359586,154.56,0.0003,31]
[360316752,1746739359641,154.56,0.0003,31]
[360316753,1746739359687,154.56,0.0003,31]
[360316754,1746739359746,154.56,0.0003,31]
[360316756,1746739402160,500.0,0.00030137,120]
[360316762,1746739534337,1306.56480202,0.0003013,120]
[360316763,1746739567777,627.96372266,0.0003,120]
[360316764,1746739599132,-169.1278363,0.00019715,2]
[360316765,1746739599155,-200.0,0.00019732,2]
[360316766,1746739599177,-37.68457955,0.00019732,2]
[360316767,1746739615031,1813.24663554,0.00019501,2]
[360316768,1746739615055,5186.75336446,0.00019501,2]
[360316769,1746739650592,248.692116,0.0003,30]
[360316770,1746739657850,1100.0,0.000191,6]
[360316771,1746739659962,2200.0,0.000192,7]
[360316772,1746739662115,3300.0,0.000193,7]
[360316773,1746739664728,4500.0,0.000194,7]
[360316774,1746739664764,500.0,0.0003,30]
[360316775,1746739666449,5600.0,0.000195,7]
[360316776,1746739668553,1100.0,0.000196,7]
[360316777,1746739670162,160.18030613,0.00028,120]
[360316778,1746739670731,1100.0,0.000197,7]
[360316779,1746739671956,10508.1265912,0.0003,120]
[360316780,1746739672832,1100.0,0.000198,7]
[360316781,1746739675271,1100.0,0.000199,7]
[360316783,1746739695408,30000.59048346,0.0003,30]
[360316784,1746739721129,305.8019529,0.0003,120]
[360316785,1746739723825,3176.14612758,0.0003,120]
[360316787,1746739727885,508.6170308,0.0001,120]
[360316788,1746739730556,208.63324504,0.0002,120]
[360316789,1746739743620,250.0,0.00017,2]
[360316790,1746739744628,300.0,0.00019,2]
[360316805,1746739782476,150.0,0.00019058,2]
[360316806,1746739792226,1318.2,0.00018878,2]
[360316807,1746739792908,1318.2,0.00025958,120]
[360316808,1746739793203,1318.2,0.00028318,120]
[360316833,1746739831584,-169.12783629,0.00019669,2]
[360316835,1746739831597,-679.21807295,0.00019699,2]
[360316840,1746739831648,-320.93353656,0.00019699,2]
[360316841,1746739831748,-199.84839049,0.00019699,2]
[360316842,1746739831760,-300.0,0.00019699,2]
[360316843,1746739831773,-470.06907133,0.000197,2]
[360316844,1746739831787,-484.24342007,0.000197,2]
[360316845,1746739831801,-3249.71405519,0.000197,2]
[360316846,1746739831820,-36468.49001884,0.000197,2]
[360316847,1746739831835,-624.79046279,0.000197,2]
[360316848,1746739831849,-8958.39962264,0.000197,2]
[360316849,1746739831902,-668.59142846,0.000197,2]
[360316850,1746739831916,-1593.32767325,0.000197,2]
[360316851,1746739832022,-2763.35323409,0.000197,2]
[360316852,1746739832037,-1565.51600315,0.000197,2]
[360316892,1746739837616,-1167.45392514,0.000197,2]
[360316895,1746739837626,-166.54,0.00019727,2]
[360316897,1746739837636,-200.0,0.0001973,2]
[360316900,1746739837645,-212.31542045,0.00019732,2]
[360316903,1746739837655,-500.0,0.00019748,2]
[360316905,1746739837664,-1834.2,0.0001975,2]
[360316907,1746739837675,-200.0,0.00019769,2]
[360316909,1746739837684,-441.49850838,0.00019782,2]
[360316910,1746739837693,-63.70467932,0.00019789,2]
[360316913,1746739837705,-136.29532068,0.00019789,2]
[360316914,1746739837715,-441.49850838,0.00019794,2]
[360316915,1746739837724,-169.12783629,0.000198,2]
[360316916,1746739837734,-1749.99999999,0.00019804,2]
[360316917,1746739837744,-19851.2031547,0.00019814,2]
[360316918,1746739837756,-2785.20861541,0.00019814,2]
[360316919,1746739837768,-1749.99999999,0.00019815,2]
[360316920,1746739837777,-523.52570501,0.00019822,2]
[360316921,1746739837787,-319.79499998,0.00019826,2]
[360316922,1746739837797,-22636.41177011,0.00019855,2]
[360316923,1746739837806,-500.0,0.00019873,2]
[360316924,1746739837815,-399.91161886,0.00019873,2]
[360316925,1746739837825,-517.45871083,0.00019873,2]
[360316926,1746739837835,-500.0,0.00019873,2]
[360316927,1746739837844,-500.0,0.00019873,2]
[360316928,1746739837854,-501.53277927,0.00019873,2]
[360316929,1746739837864,-200.0,0.0001988,2]
[360316930,1746739837873,-523.52570501,0.00019881,2]
[360316931,1746739837883,-806.09,0.0001989,3]
[360316932,1746739837892,-319.79499998,0.00019898,2]
[360316933,1746739837902,-1649.08440536,0.000199,2]
[360316934,1746739837911,-1649.08440536,0.000199,2]
[360316935,1746739837921,-2719.16353296,0.000199,2]
[360316936,1746739837930,-12979.20522467,0.000199,2]
[360316937,1746739837950,-27901.98402025,0.000199,2]
[360316938,1746739837962,-201.98682142,0.000199,2]
[360316939,1746739837972,-2798.95187268,0.000199,2]
[360316940,1746739837982,-334.77701786,0.000199,2]
[360316941,1746739837991,-64502.5158534,0.000199,2]
[360316942,1746739838003,-37759.18107356,0.000199,2]
[360316943,1746739838012,-5800.0,0.000199,2]
[360316944,1746739838022,-627.25815179,0.000199,2]
[360316945,1746739838031,-860.89337863,0.000199,2]
[360316946,1746739838041,-5587.21664404,0.000199,2]
[360316947,1746739838051,-501.88362141,0.00019973,2]
[360316948,1746739838060,-550.74197227,0.00019973,2]
[360316949,1746739838069,-500.0,0.00019973,2]
[360316950,1746739838080,-500.0,0.00019973,2]
[360316951,1746739838090,-500.0,0.00019973,2]
[360316952,1746739838100,-500.0,0.00019973,2]
[360316953,1746739838109,-500.0,0.00019973,2]
[360316954,1746739838119,-500.0,0.00019973,2]
[360316955,1746739838129,-473.71396339,0.00019973,2]
[360316956,1746739838138,-160.63200225,0.00019973,2]
[360316957,1746739838148,-3935.3145,0.00019973,2]
[360316958,1746739838157,-29232.55634091,0.0001999,2]
[360316959,1746739838169,-1230.46192603,0.0001999,2]
[360316960,1746739838181,-4222.70343708,0.0001999,2]
[360316961,1746739838199,-173.5745617,0.0001999,2]
[360316963,1746739838208,-13157.55361584,0.0001999,2]
[360316964,1746739838220,-51931.6824645,0.0001999,2]
[360316965,1746739838231,-2383.49999997,0.0001999,2]
[360316966,1746739838244,-3282.15000004,0.0001999,2]
[360316967,1746739838257,-4300.95149412,0.0001999,2]
[360316975,1746739839948,-1277.00023239,0.0001999,2]
[360316976,1746739839961,-3157.05016759,0.0001999,2]
[360316977,1746739840181,-2068.55,0.0001999,2]
[360316985,1746739842922,-14299.52746304,0.000199,2]
[360316987,1746739842932,-89017.29127259,0.0001999,2]
[360316991,1746739842944,-173.5745617,0.0001999,2]
[360316993,1746739842954,-173.5745617,0.0001999,2]
[360316996,1746739842964,-280.99320389,0.00019999,2]
[360316999,1746739842973,-155.38500103,0.00019999,2]
[360317000,1746739842984,-229.49482692,0.00019999,2]
[360317003,1746739842993,-493.9334945,0.00019999,2]
[360317005,1746739843003,-500.0,0.00019999,2]
[360317006,1746739843012,-500.0,0.00019999,2]
[360317008,1746739843024,-500.0,0.00019999,2]
[360317009,1746739843035,-500.0,0.00019999,2]
[360317010,1746739843045,-500.0,0.00019999,2]
[360317011,1746739843055,-500.0,0.00019999,2]
[360317012,1746739843065,-500.0,0.00019999,2]
[360317013,1746739843075,-500.0,0.00019999,2]
[360317014,1746739843085,-500.0,0.00019999,2]
[360317015,1746739843095,-500.0,0.00019999,2]
[360317016,1746739843104,-500.0,0.00019999,2]
[360317017,1746739843115,-500.0,0.00019999,2]
[360317018,1746739843125,-500.0,0.00019999,2]
[360317019,1746739843134,-445.392797,0.00019999,2]
[360317020,1746739843145,-500.0,0.00019999,2]
[360317021,1746739843154,-500.0,0.00019999,2]
[360317022,1746739843164,-500.0,0.00019999,2]
[360317023,1746739843173,-500.0,0.00019999,2]
[360317024,1746739843183,-500.0,0.00019999,2]
[360317025,1746739843193,-500.0,0.00019999,2]
[360317026,1746739843203,-500.0,0.00019999,2]
[360317027,1746739843212,-500.0,0.00019999,2]
[360317028,1746739843222,-486.56468904,0.00019999,2]
[360317029,1746739843231,-500.0,0.00019999,2]
[360317030,1746739843241,-500.0,0.00019999,2]
[360317031,1746739843252,-500.0,0.00019999,2]
[360317032,1746739843261,-500.0,0.00019999,2]
[360317033,1746739843275,-500.0,0.00019999,2]
[360317034,1746739843284,-500.0,0.00019999,2]
[360317035,1746739843294,-500.0,0.00019999,2]
[360317036,1746739843303,-500.0,0.00019999,2]
[360317037,1746739843313,-500.0,0.00019999,2]
[360317038,1746739843322,-500.0,0.00019999,2]
[360317039,1746739843335,-500.0,0.00019999,2]
[360317040,1746739843344,-500.0,0.00019999,2]
[360317041,1746739843354,-500.0,0.00019999,2]
[360317042,1746739843364,-500.0,0.00019999,2]
[360317043,1746739843374,-500.0,0.00019999,2]
[360317044,1746739843383,-500.0,0.00019999,2]
[360317045,1746739843393,-500.0,0.00019999,2]
[360317046,1746739843402,-500.0,0.00019999,2]
[360317047,1746739843413,-500.0,0.00019999,2]
[360317048,1746739843426,-500.0,0.00019999,2]
[360317049,1746739843442,-500.0,0.00019999,2]
[360317050,1746739843453,-500.0,0.00019999,2]
[360317051,1746739843463,-500.0,0.00019999,2]
[360317053,1746739843473,-500.0,0.00019999,2]
[360317055,1746739843482,-500.0,0.00019999,2]
[360317057,1746739843492,-500.0,0.00019999,2]
[360317059,1746739843502,-500.0,0.00019999,2]
[360317061,1746739843512,-500.0,0.00019999,2]
[360317062,1746739843524,-500.0,0.00019999,2]
[360317063,1746739843534,-500.0,0.00019999,2]
[360317064,1746739843544,-500.0,0.00019999,2]
[360317065,1746739843554,-500.0,0.00019999,2]
[360317066,1746739843564,-500.0,0.00019999,2]
[360317068,1746739843576,-500.0,0.00019999,2]
[360317069,1746739843591,-500.0,0.00019999,2]
[360317070,1746739843601,-500.0,0.00019999,2]
[360317072,1746739843611,-500.0,0.00019999,2]
[360317074,1746739843621,-500.0,0.00019999,2]
[360317075,1746739843631,-500.0,0.00019999,2]
[360317077,1746739843640,-500.0,0.00019999,2]
[360317079,1746739843651,-500.0,0.00019999,2]
[360317081,1746739843661,-500.0,0.00019999,2]
[360317083,1746739843671,-500.0,0.00019999,2]
[360317085,1746739843680,-500.0,0.00019999,2]
[360317087,1746739843689,-500.0,0.00019999,2]
[360317089,1746739843699,-500.0,0.00019999,2]
[360317091,1746739843709,-500.0,0.00019999,2]
[360317094,1746739843719,-500.0,0.00019999,2]
[360317097,1746739843729,-500.0,0.00019999,2]
[360317101,1746739843741,-500.0,0.00019999,2]
[360317103,1746739843751,-500.0,0.00019999,2]
[360317104,1746739843761,-500.0,0.00019999,2]
[360317106,1746739843772,-500.0,0.00019999,2]
[360317109,1746739843782,-500.0,0.00019999,2]
[360317110,1746739843791,-500.0,0.00019999,2]
[360317112,1746739843801,-267.72427659,0.00019999,2]
[360317115,1746739843811,-1283294.34117093,0.0002,2]
[360317119,1746739843832,-10876.74809674,0.0002,2]
[360317121,1746739843847,-54680.0263054,0.0002,2]
[360317124,1746739843860,-361.27214663,0.0002,2]
[360317132,1746739843927,-174.00845056,0.0002,2]
[360317237,1746739845588,-97857.46497042,0.0002,2]
[360317238,1746739845651,-3739.7035299,0.0002,2]
[360317239,1746739845768,-340363.573044,0.0002,2]
[360317240,1746739845780,-8873.3911225,0.0002,2]
[360317241,1746739845791,-354.55239705,0.0002,2]
[360317242,1746739845803,-12333.12321195,0.0002,2]
[360317243,1746739845813,-24400.56553787,0.0002,2]
[360317244,1746739845829,-8010.4723179,0.0002,2]
[360317245,1746739845841,-2008.10118231,0.0002,2]
[360317246,1746739845892,-38256.17463228,0.0002,2]
[360317248,1746739846235,-3743263.54905936,0.0002,2]
[360317249,1746739846281,-24494.67141901,0.0002,2]
[360317250,1746739846294,-2051.07280594,0.0002,2]
[360317251,1746739846306,-6484.38454392,0.0002,2]
[360317252,1746739846318,-2722.32958891,0.0002,2]
[360317253,1746739846329,-6818.22021088,0.0002,2]
[360317257,1746739878898,31278.1589673,0.00019999,7]